[Event "Early-Titled-Tuesday-Blitz-October-03-2023"]
[Site "Chess.com"]
[Date "2023.10.03"]
[Round "7"]
[White "Khromkin"]
[Black "NovozhilovSemen"]
[Result "0-1"]
[WhiteElo "2456"]
[BlackElo "2595"]
[TimeControl "180+1"]
[EndTime "9:19:36 PDT"]
[Termination "NovozhilovSemen won on time"]

1. d4 {[%clk 0:02:55.3]} 1... Nf6 {[%clk 0:02:59.8]} 2. c4 {[%clk 0:02:55.9]}
2... e6 {[%clk 0:03:00]} 3. Nf3 {[%clk 0:02:56.6]} 3... d5 {[%clk 0:02:59.5]} 4.
Nc3 {[%clk 0:02:56.4]} 4... Bb4 {[%clk 0:02:59.1]} 5. Qa4+ {[%clk 0:02:55.6]}
5... Nc6 {[%clk 0:02:58.9]} 6. Bd2 {[%clk 0:02:56.2]} 6... O-O {[%clk
0:02:58.2]} 7. e3 {[%clk 0:02:56.3]} 7... Bd7 {[%clk 0:02:52.7]} 8. Qc2 {[%clk
0:02:55.7]} 8... Re8 {[%clk 0:02:45.6]} 9. Rd1 {[%clk 0:02:52.6]} 9... Qe7
{[%clk 0:02:36.3]} 10. a3 {[%clk 0:02:51.3]} 10... Bxc3 {[%clk 0:02:31.8]} 11.
Bxc3 {[%clk 0:02:51.4]} 11... Ne4 {[%clk 0:02:31]} 12. Bd3 {[%clk 0:02:49.9]}
12... Nxc3 {[%clk 0:02:29.6]} 13. bxc3 {[%clk 0:02:50.5]} 13... h6 {[%clk
0:02:27.3]} 14. cxd5 {[%clk 0:02:41.7]} 14... exd5 {[%clk 0:02:27.3]} 15. Qa2
{[%clk 0:02:35.7]} 15... Be6 {[%clk 0:02:25.1]} 16. O-O {[%clk 0:02:33.2]} 16...
Na5 {[%clk 0:02:25.2]} 17. Ne5 {[%clk 0:02:31.4]} 17... c5 {[%clk 0:02:21.4]}
18. Bb1 {[%clk 0:02:30.8]} 18... cxd4 {[%clk 0:02:06.1]} 19. exd4 {[%clk
0:02:27.1]} 19... Rac8 {[%clk 0:02:02.4]} 20. Rd3 {[%clk 0:02:07.7]} 20... Bf5
{[%clk 0:01:54.8]} 21. Rf3 {[%clk 0:02:07.5]} 21... Bxb1 {[%clk 0:01:52.6]} 22.
Qxb1 {[%clk 0:02:07.9]} 22... f6 {[%clk 0:01:51.5]} 23. Nd3 {[%clk 0:01:44.9]}
23... Nc4 {[%clk 0:01:46.1]} 24. Qb5 {[%clk 0:01:13.6]} 24... Qd6 {[%clk
0:01:35.6]} 25. Rg3 {[%clk 0:01:06.6]} 25... Re7 {[%clk 0:01:30.4]} 26. a4
{[%clk 0:01:02.2]} 26... a6 {[%clk 0:01:29.5]} 27. Qb4 {[%clk 0:00:57.3]} 27...
Qc7 {[%clk 0:01:20.7]} 28. Nf4 {[%clk 0:00:52.4]} 28... a5 {[%clk 0:01:18.5]}
29. Qc5 {[%clk 0:00:33.3]} 29... Qxc5 {[%clk 0:01:16.4]} 30. dxc5 {[%clk
0:00:33.8]} 30... Rxc5 {[%clk 0:01:17.3]} 31. Rd3 {[%clk 0:00:28.7]} 31... Nb6
{[%clk 0:01:17.2]} 32. Rfd1 {[%clk 0:00:24.6]} 32... g5 {[%clk 0:01:13.8]} 33.
Nh5 {[%clk 0:00:19.7]} 33... Kf7 {[%clk 0:01:12.8]} 34. h4 {[%clk 0:00:20.2]}
34... Kg6 {[%clk 0:01:12]} 35. Ng3 {[%clk 0:00:16.4]} 35... Rec7 {[%clk
0:01:09.7]} 36. h5+ {[%clk 0:00:15.3]} 36... Kh7 {[%clk 0:01:09.1]} 37. Rf3
{[%clk 0:00:14.5]} 37... R7c6 {[%clk 0:01:06.5]} 38. Re1 {[%clk 0:00:13.3]}
38... Nc8 {[%clk 0:00:59.5]} 39. Ree3 {[%clk 0:00:08.9]} 39... Rc4 {[%clk
0:00:54.2]} 40. Nf5 {[%clk 0:00:08.2]} 40... Rf4 {[%clk 0:00:49.2]} 41. Rxf4
{[%clk 0:00:06.7]} 41... gxf4 {[%clk 0:00:50.1]} 42. Rd3 {[%clk 0:00:07.3]}
42... Nb6 {[%clk 0:00:48.4]} 43. Nd4 {[%clk 0:00:04.5]} 43... Rc4 {[%clk
0:00:47.5]} 44. Ne6 {[%clk 0:00:02.8]} 44... Rxa4 {[%clk 0:00:44.4]} 45. Rd1
{[%clk 0:00:01.1]} 45... Rc4 {[%clk 0:00:43.8]} 0-1

[Event "Early-Titled-Tuesday-Blitz-October-03-2023"]
[Site "Chess.com"]
[Date "2023.10.03"]
[Round "7"]
[White "Galileo22"]
[Black "Denis_Makhnyov"]
[Result "1-0"]
[WhiteElo "2693"]
[BlackElo "2915"]
[TimeControl "180+1"]
[EndTime "9:19:37 PDT"]
[Termination "Galileo22 won on time"]

1. d4 {[%clk 0:03:00.9]} 1... d5 {[%clk 0:03:00.1]} 2. c4 {[%clk 0:03:01.5]}
2... e6 {[%clk 0:03:00.7]} 3. Nf3 {[%clk 0:03:00.9]} 3... c6 {[%clk 0:03:00.9]}
4. g3 {[%clk 0:03:01.2]} 4... dxc4 {[%clk 0:03:00.4]} 5. Bg2 {[%clk 0:03:01]}
5... b5 {[%clk 0:03:01.1]} 6. Ne5 {[%clk 0:02:32]} 6... Bb7 {[%clk 0:03:00.8]}
7. O-O {[%clk 0:02:23.9]} 7... Nf6 {[%clk 0:02:56.9]} 8. a4 {[%clk 0:02:23.4]}
8... a6 {[%clk 0:02:56.1]} 9. b3 {[%clk 0:02:12.9]} 9... cxb3 {[%clk 0:02:52.6]}
10. Qxb3 {[%clk 0:02:13.3]} 10... Be7 {[%clk 0:01:42.9]} 11. Nd2 {[%clk
0:01:22.5]} 11... Qxd4 {[%clk 0:01:37.3]} 12. Ndf3 {[%clk 0:00:28.2]} 12... Qxa1
{[%clk 0:01:35.6]} 13. Nxf7 {[%clk 0:00:28.5]} 13... O-O {[%clk 0:01:05.6]} 14.
Qxe6 {[%clk 0:00:25.1]} 14... Nbd7 {[%clk 0:00:09.5]} 15. N3g5 {[%clk
0:00:16.7]} 15... Rxf7 {[%clk 0:00:05.3]} 16. Qxf7+ {[%clk 0:00:15.3]} 16... Kh8
{[%clk 0:00:05.8]} 17. Qxe7 {[%clk 0:00:14.9]} 17... Qxa4 {[%clk 0:00:06.2]} 18.
Bb2 {[%clk 0:00:10.1]} 18... Re8 {[%clk 0:00:05.9]} 19. Qd6 {[%clk 0:00:05]}
19... Qa2 {[%clk 0:00:05.2]} 20. Bxf6 {[%clk 0:00:03.9]} 20... Nxf6 {[%clk
0:00:04.7]} 21. Qc7 {[%clk 0:00:04.2]} 21... Ba8 {[%clk 0:00:03.2]} 22. e3
{[%clk 0:00:04.1]} 22... h6 {[%clk 0:00:02.6]} 23. Nf7+ {[%clk 0:00:04.1]} 23...
Kg8 {[%clk 0:00:03]} 24. Nd6 {[%clk 0:00:04.8]} 24... Rf8 {[%clk 0:00:03.6]} 25.
Nf5 {[%clk 0:00:04.4]} 25... Qf7 {[%clk 0:00:02.7]} 26. Qd6 {[%clk 0:00:03.7]}
26... Nd5 {[%clk 0:00:02.3]} 27. e4 {[%clk 0:00:03]} 27... Nc3 {[%clk
0:00:01.8]} 28. Re1 {[%clk 0:00:02.5]} 28... a5 {[%clk 0:00:01.2]} 29. Ne7+
{[%clk 0:00:02.5]} 29... Kh7 {[%clk 0:00:01.6]} 30. Nf5 {[%clk 0:00:02.5]} 30...
b4 {[%clk 0:00:01.8]} 31. Nd4 {[%clk 0:00:01.8]} 1-0

[Event "Early-Titled-Tuesday-Blitz-October-03-2023"]
[Site "Chess.com"]
[Date "2023.10.03"]
[Round "7"]
[White "microbear"]
[Black "Kyrie-Eleven"]
[Result "0-1"]
[WhiteElo "2188"]
[BlackElo "2295"]
[TimeControl "180+1"]
[EndTime "9:19:37 PDT"]
[Termination "Kyrie-Eleven won by resignation"]

1. e4 {[%clk 0:02:41.1]} 1... e6 {[%clk 0:02:33.6]} 2. d4 {[%clk 0:02:28.5]}
2... d5 {[%clk 0:02:11.7]} 3. e5 {[%clk 0:02:22.6]} 3... c5 {[%clk 0:02:11.4]}
4. c3 {[%clk 0:02:07.9]} 4... Nc6 {[%clk 0:02:06.1]} 5. Bb5 {[%clk 0:01:53.6]}
5... Qb6 {[%clk 0:01:43.4]} 6. Bxc6+ {[%clk 0:01:51]} 6... bxc6 {[%clk
0:01:42.4]} 7. Ne2 {[%clk 0:01:49.5]} 7... Ba6 {[%clk 0:01:29.9]} 8. O-O {[%clk
0:01:30.3]} 8... Ne7 {[%clk 0:01:26.1]} 9. b3 {[%clk 0:01:18.7]} 9... cxd4
{[%clk 0:01:15.3]} 10. cxd4 {[%clk 0:01:12.1]} 10... Nf5 {[%clk 0:01:02.2]} 11.
Be3 {[%clk 0:01:09.3]} 11... Nxe3 {[%clk 0:00:55]} 12. fxe3 {[%clk 0:01:07.1]}
12... Be7 {[%clk 0:00:55.7]} 13. Nbc3 {[%clk 0:01:05.3]} 13... O-O {[%clk
0:00:35.9]} 14. Rf3 {[%clk 0:01:02.7]} 14... f6 {[%clk 0:00:34.8]} 15. exf6
{[%clk 0:00:57.7]} 15... Bxf6 {[%clk 0:00:34.7]} 16. Na4 {[%clk 0:00:53.8]}
16... Qb5 {[%clk 0:00:33.4]} 17. Nf4 {[%clk 0:00:45.3]} 17... e5 {[%clk
0:00:31.7]} 18. Ne6 {[%clk 0:00:42.5]} 18... exd4 {[%clk 0:00:28]} 19. Nc7
{[%clk 0:00:35]} 19... Qa5 {[%clk 0:00:26.2]} 20. Nxa8 {[%clk 0:00:30.9]} 20...
dxe3 {[%clk 0:00:25.8]} 21. Rxf6 {[%clk 0:00:27]} 21... Rxf6 {[%clk 0:00:22.3]}
22. Qe1 {[%clk 0:00:23]} 22... Qxe1+ {[%clk 0:00:18.1]} 23. Rxe1 {[%clk
0:00:23.9]} 23... e2 {[%clk 0:00:18.6]} 24. Rxe2 {[%clk 0:00:18]} 24... Bxe2
{[%clk 0:00:18.1]} 25. h3 {[%clk 0:00:16.9]} 25... Rf7 {[%clk 0:00:16]} 26. Nc5
{[%clk 0:00:15.4]} 26... d4 {[%clk 0:00:14.2]} 27. Kh2 {[%clk 0:00:11.8]} 27...
d3 {[%clk 0:00:14.4]} 28. Ne4 {[%clk 0:00:12.1]} 28... Rd7 {[%clk 0:00:10.4]}
29. Nd2 {[%clk 0:00:09.7]} 29... c5 {[%clk 0:00:08.9]} 30. Kg3 {[%clk
0:00:10.2]} 30... Bh5 {[%clk 0:00:08.5]} 31. Kf4 {[%clk 0:00:09.7]} 31... Re7
{[%clk 0:00:07.6]} 32. g4 {[%clk 0:00:08.2]} 32... Bg6 {[%clk 0:00:07.2]} 33. h4
{[%clk 0:00:06.6]} 33... Re2 {[%clk 0:00:07.5]} 34. Nc4 {[%clk 0:00:05.6]} 34...
d2 {[%clk 0:00:08.4]} 35. Nxd2 {[%clk 0:00:05.8]} 35... Rxd2 {[%clk 0:00:09.3]}
36. Nc7 {[%clk 0:00:06.1]} 36... Rxa2 {[%clk 0:00:08.9]} 0-1

[Event "Early-Titled-Tuesday-Blitz-October-03-2023"]
[Site "Chess.com"]
[Date "2023.10.03"]
[Round "7"]
[White "IwkooO"]
[Black "nrvignesh"]
[Result "1-0"]
[WhiteElo "2672"]
[BlackElo "2809"]
[TimeControl "180+1"]
[EndTime "9:19:38 PDT"]
[Termination "IwkooO won on time"]

1. e4 {[%clk 0:02:48.1]} 1... c6 {[%clk 0:02:57.1]} 2. d4 {[%clk 0:02:45.4]}
2... d5 {[%clk 0:02:57.2]} 3. f3 {[%clk 0:02:44.9]} 3... dxe4 {[%clk 0:02:52.1]}
4. fxe4 {[%clk 0:02:43.8]} 4... e5 {[%clk 0:02:53]} 5. Nf3 {[%clk 0:02:44.1]}
5... Bg4 {[%clk 0:02:43.6]} 6. Bc4 {[%clk 0:02:42.1]} 6... Nd7 {[%clk
0:02:39.7]} 7. O-O {[%clk 0:02:40.6]} 7... Ngf6 {[%clk 0:02:35.1]} 8. c3 {[%clk
0:02:20.5]} 8... Bd6 {[%clk 0:02:24.7]} 9. Be3 {[%clk 0:02:17.3]} 9... O-O
{[%clk 0:02:20.1]} 10. Nbd2 {[%clk 0:02:17.4]} 10... Qc7 {[%clk 0:02:16.3]} 11.
h3 {[%clk 0:02:17]} 11... Bh5 {[%clk 0:02:12.9]} 12. Qc2 {[%clk 0:02:09]} 12...
Bg6 {[%clk 0:02:00.8]} 13. Nh4 {[%clk 0:02:07.7]} 13... b5 {[%clk 0:01:56.2]}
14. Bd3 {[%clk 0:02:07]} 14... a6 {[%clk 0:01:51.4]} 15. Nf5 {[%clk 0:02:05]}
15... c5 {[%clk 0:01:48]} 16. d5 {[%clk 0:01:53.1]} 16... c4 {[%clk 0:01:45.9]}
17. Be2 {[%clk 0:01:53.7]} 17... Bc5 {[%clk 0:01:45.1]} 18. Bxc5 {[%clk
0:01:47.2]} 18... Nxc5 {[%clk 0:01:45.7]} 19. Rae1 {[%clk 0:01:36.6]} 19... Bxf5
{[%clk 0:01:41.7]} 20. Rxf5 {[%clk 0:01:36.3]} 20... Ne8 {[%clk 0:01:42.2]} 21.
b3 {[%clk 0:01:34.5]} 21... cxb3 {[%clk 0:01:35]} 22. axb3 {[%clk 0:01:32.4]}
22... f6 {[%clk 0:01:32.9]} 23. b4 {[%clk 0:01:28.2]} 23... Nd7 {[%clk
0:01:29.1]} 24. c4 {[%clk 0:01:28.6]} 24... bxc4 {[%clk 0:01:13]} 25. Nxc4
{[%clk 0:01:28.4]} 25... Nd6 {[%clk 0:01:12.3]} 26. Rf2 {[%clk 0:01:27.5]} 26...
Rfc8 {[%clk 0:00:55.3]} 27. Rc1 {[%clk 0:01:22.4]} 27... Nb6 {[%clk 0:00:49.5]}
28. Ne3 {[%clk 0:00:51.2]} 28... Qa7 {[%clk 0:00:35.4]} 29. Qb1 {[%clk
0:00:43.5]} 29... Rxc1+ {[%clk 0:00:36.3]} 30. Qxc1 {[%clk 0:00:44.2]} 30...
Nxe4 {[%clk 0:00:37]} 31. Rf3 {[%clk 0:00:41]} 31... Rc8 {[%clk 0:00:36.5]} 32.
Qb2 {[%clk 0:00:35.5]} 32... Nxd5 {[%clk 0:00:29.3]} 33. Qb3 {[%clk 0:00:35.6]}
33... Nc3 {[%clk 0:00:26.2]} 34. Bc4 {[%clk 0:00:35.7]} 34... Kf8 {[%clk
0:00:07.1]} 35. Bxd5 {[%clk 0:00:35.5]} 35... e4 {[%clk 0:00:03.4]} 36. Bxe4
{[%clk 0:00:22.3]} 36... Nxe4 {[%clk 0:00:02.5]} 37. Qe6 {[%clk 0:00:18.7]} 1-0

[Event "Early-Titled-Tuesday-Blitz-October-03-2023"]
[Site "Chess.com"]
[Date "2023.10.03"]
[Round "7"]
[White "Fradi82"]
[Black "Predator0608"]
[Result "0-1"]
[WhiteElo "2334"]
[BlackElo "2478"]
[TimeControl "180+1"]
[EndTime "9:19:40 PDT"]
[Termination "Predator0608 won by checkmate"]

1. e4 {[%clk 0:03:00.9]} 1... c5 {[%clk 0:02:59.6]} 2. Nf3 {[%clk 0:03:00.2]}
2... d6 {[%clk 0:03:00]} 3. d4 {[%clk 0:03:00]} 3... cxd4 {[%clk 0:03:00.9]} 4.
Nxd4 {[%clk 0:03:00.7]} 4... Nf6 {[%clk 0:03:01.8]} 5. Nc3 {[%clk 0:03:00]} 5...
a6 {[%clk 0:03:02.4]} 6. Qe2 {[%clk 0:03:00]} 6... e5 {[%clk 0:03:01.3]} 7. Nf5
{[%clk 0:02:59.6]} 7... d5 {[%clk 0:02:51.8]} 8. Bg5 {[%clk 0:02:57.8]} 8... d4
{[%clk 0:02:48.7]} 9. O-O-O {[%clk 0:02:57.1]} 9... Nc6 {[%clk 0:02:31.7]} 10.
Qf3 {[%clk 0:02:54.2]} 10... h6 {[%clk 0:01:41.9]} 11. Bxf6 {[%clk 0:02:49.5]}
11... gxf6 {[%clk 0:01:42.8]} 12. Nd5 {[%clk 0:02:37.9]} 12... Be6 {[%clk
0:01:36.3]} 13. Bc4 {[%clk 0:02:27.9]} 13... b5 {[%clk 0:01:26.3]} 14. Bb3
{[%clk 0:02:15.7]} 14... Na5 {[%clk 0:01:23.9]} 15. Kb1 {[%clk 0:01:33]} 15...
Nxb3 {[%clk 0:01:23.6]} 16. axb3 {[%clk 0:01:33.9]} 16... Rg8 {[%clk 0:01:10.9]}
17. Rhe1 {[%clk 0:01:18.9]} 17... a5 {[%clk 0:00:46.8]} 18. c3 {[%clk
0:00:38.4]} 18... Bxd5 {[%clk 0:00:41.6]} 19. exd5 {[%clk 0:00:38.3]} 19... dxc3
{[%clk 0:00:42.5]} 20. bxc3 {[%clk 0:00:31.3]} 20... Qd7 {[%clk 0:00:30.7]} 21.
d6 {[%clk 0:00:29.8]} 21... Rc8 {[%clk 0:00:29]} 22. Kb2 {[%clk 0:00:28.9]}
22... Rg5 {[%clk 0:00:28.8]} 23. g4 {[%clk 0:00:27.5]} 23... h5 {[%clk
0:00:29.2]} 24. h3 {[%clk 0:00:27.4]} 24... a4 {[%clk 0:00:25.1]} 25. b4 {[%clk
0:00:25.9]} 25... Kd8 {[%clk 0:00:21.7]} 26. Rd5 {[%clk 0:00:20.1]} 26... Qe6
{[%clk 0:00:21.1]} 27. Red1 {[%clk 0:00:14.8]} 27... hxg4 {[%clk 0:00:20.6]} 28.
hxg4 {[%clk 0:00:14.6]} 28... Rb8 {[%clk 0:00:20.6]} 29. d7 {[%clk 0:00:13.9]}
29... Rg8 {[%clk 0:00:20.3]} 30. Nd6 {[%clk 0:00:13.1]} 30... Rh8 {[%clk
0:00:18.5]} 31. R5d3 {[%clk 0:00:12.4]} 31... Qb3+ {[%clk 0:00:17.1]} 32. Kc1
{[%clk 0:00:13]} 32... a3 {[%clk 0:00:15.8]} 33. Nb7+ {[%clk 0:00:12.3]} 33...
Rxb7 {[%clk 0:00:16.2]} 34. R1d2 {[%clk 0:00:10.4]} 34... a2 {[%clk 0:00:13]}
35. Rxa2 {[%clk 0:00:10.8]} 35... Qxa2 {[%clk 0:00:13.3]} 36. Qxb7 {[%clk
0:00:11.1]} 36... Rh1+ {[%clk 0:00:12.5]} 37. Rd1 {[%clk 0:00:10.6]} 37... Qa1+
{[%clk 0:00:13]} 38. Kd2 {[%clk 0:00:09.3]} 38... Qxd1+ {[%clk 0:00:13.9]} 39.
Ke3 {[%clk 0:00:09.6]} 39... Re1# {[%clk 0:00:13.7]} 0-1

[Event "Early-Titled-Tuesday-Blitz-October-03-2023"]
[Site "Chess.com"]
[Date "2023.10.03"]
[Round "7"]
[White "Alexandr_Predke"]
[Black "szachuspl"]
[Result "1-0"]
[WhiteElo "2881"]
[BlackElo "2543"]
[TimeControl "180+1"]
[EndTime "9:19:41 PDT"]
[Termination "Alexandr_Predke won by resignation"]

1. d4 {[%clk 0:02:58.7]} 1... Nf6 {[%clk 0:02:58.9]} 2. Nf3 {[%clk 0:02:58.7]}
2... g6 {[%clk 0:02:58.6]} 3. Bg5 {[%clk 0:02:55.6]} 3... Bg7 {[%clk 0:02:58.2]}
4. Nbd2 {[%clk 0:02:55.7]} 4... d5 {[%clk 0:02:57.3]} 5. e3 {[%clk 0:02:51.8]}
5... O-O {[%clk 0:02:56.8]} 6. Be2 {[%clk 0:02:51.6]} 6... Bg4 {[%clk
0:02:54.4]} 7. O-O {[%clk 0:02:50.3]} 7... Nbd7 {[%clk 0:02:52.6]} 8. c4 {[%clk
0:02:47]} 8... c6 {[%clk 0:02:36.5]} 9. Qb3 {[%clk 0:02:45.9]} 9... Qb6 {[%clk
0:02:31.6]} 10. cxd5 {[%clk 0:02:45.7]} 10... cxd5 {[%clk 0:02:29]} 11. Rfc1
{[%clk 0:02:44.5]} 11... Bxf3 {[%clk 0:02:23.8]} 12. Bxf3 {[%clk 0:02:40.5]}
12... e6 {[%clk 0:02:22.1]} 13. Qxb6 {[%clk 0:02:35.1]} 13... Nxb6 {[%clk
0:02:16.6]} 14. a4 {[%clk 0:02:14.9]} 14... Rfc8 {[%clk 0:02:12.5]} 15. a5
{[%clk 0:02:14.7]} 15... Nbd7 {[%clk 0:02:12.5]} 16. Bf4 {[%clk 0:02:12.4]}
16... Bf8 {[%clk 0:02:05.8]} 17. Kf1 {[%clk 0:02:07.2]} 17... a6 {[%clk
0:01:57.7]} 18. Ke2 {[%clk 0:01:49.2]} 18... Bb4 {[%clk 0:01:57.3]} 19. Nb3
{[%clk 0:01:49.5]} 19... Kf8 {[%clk 0:01:54.4]} 20. Bc7 {[%clk 0:01:44.6]} 20...
Ne8 {[%clk 0:01:51.4]} 21. Bg3 {[%clk 0:01:41.1]} 21... Bd6 {[%clk 0:01:45]} 22.
Rc3 {[%clk 0:01:33.2]} 22... Rxc3 {[%clk 0:01:35.3]} 23. bxc3 {[%clk 0:01:32.1]}
23... Rc8 {[%clk 0:01:35.4]} 24. Kd3 {[%clk 0:01:23.6]} 24... Bxg3 {[%clk
0:01:35.2]} 25. hxg3 {[%clk 0:01:24.5]} 25... Nd6 {[%clk 0:01:34.6]} 26. Nd2
{[%clk 0:01:24.8]} 26... f5 {[%clk 0:01:34.3]} 27. g4 {[%clk 0:01:13.1]} 27...
Nf6 {[%clk 0:01:25.5]} 28. gxf5 {[%clk 0:01:12.3]} 28... exf5 {[%clk 0:01:17.4]}
29. Rb1 {[%clk 0:01:09.3]} 29... Rc7 {[%clk 0:01:15.5]} 30. Rb6 {[%clk 0:01:04]}
30... Ke7 {[%clk 0:01:15.6]} 31. Rb4 {[%clk 0:00:37]} 31... Nfe4 {[%clk
0:00:44.1]} 32. Bxe4 {[%clk 0:00:37.2]} 32... fxe4+ {[%clk 0:00:44.4]} 33. Kc2
{[%clk 0:00:37.4]} 33... Nb5 {[%clk 0:00:40.5]} 34. Rb3 {[%clk 0:00:29.8]} 34...
Kd6 {[%clk 0:00:38.2]} 35. f3 {[%clk 0:00:30.4]} 35... exf3 {[%clk 0:00:29.6]}
36. gxf3 {[%clk 0:00:31.3]} 36... Rf7 {[%clk 0:00:29.1]} 37. Kd3 {[%clk
0:00:31.2]} 37... Kc7 {[%clk 0:00:24.3]} 38. c4 {[%clk 0:00:27.6]} 38... dxc4+
{[%clk 0:00:24.2]} 39. Kxc4 {[%clk 0:00:28.5]} 39... h5 {[%clk 0:00:23.1]} 40.
Kd3 {[%clk 0:00:25.5]} 40... h4 {[%clk 0:00:22.2]} 41. Rb1 {[%clk 0:00:25.3]}
41... g5 {[%clk 0:00:22]} 42. Rg1 {[%clk 0:00:24.4]} 42... Rg7 {[%clk
0:00:20.3]} 43. Ne4 {[%clk 0:00:24.1]} 43... Nd6 {[%clk 0:00:15.7]} 44. Nxg5
{[%clk 0:00:21.5]} 44... Nf5 {[%clk 0:00:11]} 45. Ne6+ {[%clk 0:00:21.2]} 45...
Kd6 {[%clk 0:00:10.8]} 46. Nxg7 {[%clk 0:00:21.1]} 1-0

[Event "Early-Titled-Tuesday-Blitz-October-03-2023"]
[Site "Chess.com"]
[Date "2023.10.03"]
[Round "7"]
[White "tylityli"]
[Black "noblerone"]
[Result "0-1"]
[WhiteElo "2342"]
[BlackElo "2495"]
[TimeControl "180+1"]
[EndTime "9:19:43 PDT"]
[Termination "noblerone won on time"]

1. d4 {[%clk 0:02:59.8]} 1... d5 {[%clk 0:02:59.5]} 2. c4 {[%clk 0:02:58.7]}
2... c6 {[%clk 0:03:00]} 3. cxd5 {[%clk 0:02:58.5]} 3... cxd5 {[%clk 0:03:00]}
4. Bf4 {[%clk 0:02:58.4]} 4... Nf6 {[%clk 0:03:00.3]} 5. e3 {[%clk 0:02:57.9]}
5... Nc6 {[%clk 0:03:00.2]} 6. Nc3 {[%clk 0:02:58.1]} 6... a6 {[%clk 0:02:59.8]}
7. Bd3 {[%clk 0:02:57.4]} 7... Bg4 {[%clk 0:02:59.8]} 8. Nge2 {[%clk 0:02:56.5]}
8... e6 {[%clk 0:02:59.3]} 9. O-O {[%clk 0:02:56.7]} 9... Bd6 {[%clk 0:02:58.1]}
10. f3 {[%clk 0:02:56.9]} 10... Bh5 {[%clk 0:02:57]} 11. Rc1 {[%clk 0:02:57]}
11... O-O {[%clk 0:02:56.7]} 12. a3 {[%clk 0:02:55.4]} 12... Rc8 {[%clk
0:02:55.5]} 13. b4 {[%clk 0:02:54.5]} 13... Bg6 {[%clk 0:02:53.2]} 14. g4 {[%clk
0:02:50.3]} 14... Bxd3 {[%clk 0:02:40.5]} 15. Qxd3 {[%clk 0:02:48.6]} 15... b5
{[%clk 0:02:28.3]} 16. Bg5 {[%clk 0:02:44.9]} 16... Be7 {[%clk 0:02:20.7]} 17.
Rc2 {[%clk 0:02:27.5]} 17... Nd7 {[%clk 0:02:13.5]} 18. Bxe7 {[%clk 0:02:11.4]}
18... Nxe7 {[%clk 0:02:07]} 19. Na2 {[%clk 0:02:01.8]} 19... Nb6 {[%clk
0:02:03.6]} 20. Rxc8 {[%clk 0:01:53]} 20... Qxc8 {[%clk 0:01:56.2]} 21. Rc1
{[%clk 0:01:49.8]} 21... Nc4 {[%clk 0:01:56.4]} 22. a4 {[%clk 0:01:43.3]} 22...
Ng6 {[%clk 0:01:53.9]} 23. a5 {[%clk 0:01:39.3]} 23... Nh4 {[%clk 0:01:45.6]}
24. Kf2 {[%clk 0:01:37.5]} 24... Qc7 {[%clk 0:01:40.1]} 25. Ng3 {[%clk
0:01:33.4]} 25... Rc8 {[%clk 0:01:33.1]} 26. Rc3 {[%clk 0:01:30.6]} 26... Qd6
{[%clk 0:01:27.2]} 27. f4 {[%clk 0:01:18.2]} 27... g6 {[%clk 0:01:01.9]} 28. Qf1
{[%clk 0:01:13.9]} 28... h6 {[%clk 0:00:48.3]} 29. Qh3 {[%clk 0:01:02.4]} 29...
g5 {[%clk 0:00:48]} 30. Nh5 {[%clk 0:00:58.4]} 30... Qe7 {[%clk 0:00:39.9]} 31.
Qg3 {[%clk 0:00:36.3]} 31... Rf8 {[%clk 0:00:34.6]} 32. Qh3 {[%clk 0:00:14.9]}
32... f5 {[%clk 0:00:31.9]} 33. Ke2 {[%clk 0:00:12.3]} 33... Qh7 {[%clk
0:00:26.4]} 34. Rc1 {[%clk 0:00:10.3]} 34... fxg4 {[%clk 0:00:13.2]} 35. Qxg4
{[%clk 0:00:05.2]} 35... Qe4 {[%clk 0:00:13.4]} 0-1

[Event "Early-Titled-Tuesday-Blitz-October-03-2023"]
[Site "Chess.com"]
[Date "2023.10.03"]
[Round "7"]
[White "Leonid_Starozhilov"]
[Black "isaak2009"]
[Result "1-0"]
[WhiteElo "2739"]
[BlackElo "2547"]
[TimeControl "180+1"]
[EndTime "9:19:48 PDT"]
[Termination "Leonid_Starozhilov won on time"]

1. e4 {[%clk 0:02:59.8]} 1... e5 {[%clk 0:02:59.8]} 2. Nc3 {[%clk 0:02:57.8]}
2... Nc6 {[%clk 0:02:59.9]} 3. Nf3 {[%clk 0:02:57.8]} 3... Nf6 {[%clk
0:02:39.9]} 4. Bb5 {[%clk 0:02:57.5]} 4... Nd4 {[%clk 0:02:37.6]} 5. Bc4 {[%clk
0:02:57.9]} 5... Bc5 {[%clk 0:02:37]} 6. d3 {[%clk 0:02:57.9]} 6... d6 {[%clk
0:02:35.1]} 7. h3 {[%clk 0:02:57.1]} 7... h6 {[%clk 0:02:33.7]} 8. a3 {[%clk
0:02:57.4]} 8... a6 {[%clk 0:02:32.6]} 9. Ba2 {[%clk 0:02:57]} 9... Be6 {[%clk
0:02:31.9]} 10. Be3 {[%clk 0:02:50.2]} 10... Qd7 {[%clk 0:02:18.7]} 11. Bxd4
{[%clk 0:02:46.8]} 11... Bxd4 {[%clk 0:02:14.2]} 12. Nxd4 {[%clk 0:02:46.6]}
12... exd4 {[%clk 0:02:15.1]} 13. Ne2 {[%clk 0:02:47.1]} 13... c5 {[%clk
0:02:12.4]} 14. O-O {[%clk 0:02:34.2]} 14... O-O-O {[%clk 0:01:49.7]} 15. b4
{[%clk 0:02:23.9]} 15... Kb8 {[%clk 0:01:44]} 16. Qd2 {[%clk 0:02:17.1]} 16...
Ka8 {[%clk 0:01:35]} 17. Rfb1 {[%clk 0:02:15.8]} 17... g5 {[%clk 0:01:30.8]} 18.
bxc5 {[%clk 0:02:14.1]} 18... dxc5 {[%clk 0:01:31]} 19. Qa5 {[%clk 0:02:09.4]}
19... Rc8 {[%clk 0:01:19.4]} 20. Rb6 {[%clk 0:01:40.8]} 20... Rc6 {[%clk
0:01:19.2]} 21. Bxe6 {[%clk 0:01:27.9]} 21... fxe6 {[%clk 0:01:02.3]} 22. Rab1
{[%clk 0:01:25.7]} 22... Qc7 {[%clk 0:00:51.2]} 23. R6b5 {[%clk 0:01:04.2]}
23... Qxa5 {[%clk 0:00:50.6]} 24. Rxa5 {[%clk 0:01:05.1]} 24... Nd7 {[%clk
0:00:42.8]} 25. Ra4 {[%clk 0:00:34]} 25... Rb8 {[%clk 0:00:37.2]} 26. c4 {[%clk
0:00:30.6]} 26... Ne5 {[%clk 0:00:28.6]} 27. Rb3 {[%clk 0:00:23.1]} 27... Rf8
{[%clk 0:00:25.5]} 28. Ra5 {[%clk 0:00:19.5]} 28... Ka7 {[%clk 0:00:24.2]} 29.
Nxd4 {[%clk 0:00:17.6]} 29... cxd4 {[%clk 0:00:03.1]} 30. Rxe5 {[%clk
0:00:17.2]} 30... Rf7 {[%clk 0:00:01.9]} 31. g3 {[%clk 0:00:12.3]} 31... Kb8
{[%clk 0:00:01.2]} 32. c5 {[%clk 0:00:10.2]} 32... Kc7 {[%clk 0:00:01.4]} 33.
Kg2 {[%clk 0:00:10.7]} 33... Kd7 {[%clk 0:00:01.8]} 34. Rxb7+ {[%clk 0:00:09.6]}
34... Ke8 {[%clk 0:00:01.7]} 35. Rxf7 {[%clk 0:00:08.8]} 35... Kxf7 {[%clk
0:00:02.6]} 36. f4 {[%clk 0:00:09.5]} 36... Kf6 {[%clk 0:00:02.2]} 37. Kf3
{[%clk 0:00:09.5]} 37... Rc7 {[%clk 0:00:02.1]} 38. h4 {[%clk 0:00:08.2]} 1-0